bitfinex/quotes_ETHUSD_20251119
["timestamp","ask_amount","ask_price","bid_price","bid_amount"]
[1763542565464,0.0004,3086.8,3086.7,0.405504]
[1763542565665,0.0004,3086.8,3086.7,0.867804]
[1763542566366,0.0004,3086.8,3086.7,1.350404]
[1763542566884,0.0004,3086.8,3086.7,2.25739664]
[1763542567068,0.0004,3086.8,3086.7,3.12313979]
[1763542567402,0.0004,3086.8,3086.7,3.15553684]
[1763542569602,0.0004,3086.8,3086.7,3.12313979]
[1763542570699,0.0004,3086.8,3086.7,3.15553684]
[1763542570900,0.0004,3086.8,3086.7,9.35551184]
[1763542571200,0.002,3087.2,3086.8,0.405504]
[1763542571401,0.002,3087.2,3087.1,1.043704]
[1763542571813,0.0012,3087.2,3087.1,1.523704]
[1763542572016,0.0012,3087.2,3087.1,1.55609686]
[1763542572428,0.6711,3087.9,3087.2,0.405504]
[1763542572429,0.1852,3087.9,3087.2,0.405504]
[1763542572717,0.002,3087.9,3087.8,6.63787605]
[1763542572888,0.002,3087.9,3087.8,7.30166366]
[1763542573082,0.3654,3087.9,3087.8,7.30166366]
[1763542573625,0.002,3087.9,3087.8,7.79486366]
[1763542573781,0.002,3087.9,3087.8,8.7018563]
[1763542573989,0.002,3087.9,3086.9,0.97610158]
[1763542573990,2.76568458,3087.9,3085.5,0.001]
[1763542574235,0.543,3085.6,3085.5,0.001]
[1763542574739,1.0289,3085.6,3085.5,0.001]
[1763542575522,0.543,3085.6,3085.5,0.001]
[1763542576082,1.0289,3085.6,3085.5,0.001]
[1763542576822,0.1832,3085.9,3085.5,0.001]
[1763542577314,0.6691,3085.9,3085.5,0.001]
[1763542577719,0.4859,3085.8,3085.5,0.001]
[1763542577920,0.3622,3085.6,3085.5,0.001]
[1763542580147,0.85805125,3086.7,3085.5,0.001]
[1763542580148,0.1832,3086.1,3085.6,0.405504]
[1763542580644,0.3622,3085.7,3085.5,0.406504]
[1763542580835,0.3622,3085.7,3085.5,0.001]
[1763542581036,0.6691,3086.1,3085.5,0.001]
[1763542584123,0.1832,3086.1,3085.5,0.001]
[1763542584327,0.4656,3086.0,3085.5,0.001]
[1763542584916,0.3824,3085.6,3085.5,0.001]
[1763542585347,0.8471,3085.6,3085.5,0.001]
[1763542587722,0.3824,3085.6,3085.5,0.001]
[1763542588032,0.6488,3086.1,3085.5,0.806124]
[1763542588542,0.1832,3086.1,3085.6,0.405504]
[1763542589826,0.1832,3086.1,3085.6,0.874104]
[1763542590353,0.6488,3086.1,3085.6,0.405504]
[1763542591542,0.1832,3086.1,3085.7,3.49724]
[1763542591858,0.1876,3086.3,3085.8,0.39351526]
[1763542592059,0.6532,3086.3,3085.8,0.39351526]
[1763542592258,0.4656,3086.2,3085.8,0.39351526]
[1763542592949,0.002,3086.8,3085.8,0.39351526]
[1763542593166,0.4656,3086.7,3085.9,3.49724]
[1763542593457,0.4656,3086.7,3086.0,0.38907553]
[1763542593846,0.378,3086.1,3086.0,0.38907553]
[1763542594046,0.378,3086.1,3086.0,3.88631553]
[1763542595264,0.4647,3086.3,3086.0,3.88631553]
[1763542595265,0.4656,3086.6,3086.0,4.34161553]
[1763542596075,0.4656,3086.6,3086.1,0.90699264]
[1763542596377,0.4656,3086.6,3086.2,0.52486082]
[1763542596748,0.4648,3086.6,3086.2,0.52486082]
[1763542597080,0.378,3086.3,3086.2,0.52486082]
[1763542598159,0.4648,3086.6,3086.2,0.52486082]
[1763542598366,0.378,3086.3,3086.2,4.02210082]
[1763542599950,0.4648,3086.6,3086.2,4.02210082]
[1763542600153,0.378,3086.3,3086.2,3.49724]
[1763542603983,0.4668,3086.6,3086.2,3.49724]
[1763542603984,0.002,3086.6,3086.2,3.49724]
[1763542604183,0.4686,3086.6,3086.2,3.49724]
[1763542604389,0.3763,3086.3,3086.2,3.49724]
[1763542605987,0.842,3086.3,3086.2,3.49724]
[1763542606288,0.002,3086.6,3086.2,4.35327155]
[1763542606490,0.4686,3086.6,3086.2,4.35327155]
[1763542606987,0.3763,3086.3,3086.2,3.88597155]
[1763542609395,0.4686,3086.6,3086.3,0.405504]
[1763542609396,0.002,3086.6,3086.3,0.405504]
[1763542609567,0.002,3086.6,3086.5,1.37429264]
[1763542609771,0.002,3086.6,3086.5,2.04313569]
[1763542609969,0.002,3086.6,3086.5,2.51513569]
[1763542611595,0.4651,3086.6,3086.5,1.57583569]
[1763542612099,0.002,3086.6,3086.5,1.57583569]
[1763542612269,0.002,3086.6,3086.5,2.04313569]
[1763542614567,0.002,3086.6,3086.5,2.51513569]
[1763542614764,0.002,3086.6,3086.5,2.54753484]
[1763542614968,0.002,3086.6,3086.5,6.41787969]
[1763542615679,0.002,3086.6,3086.5,2.0460462]
[1763542616278,0.002,3086.6,3086.5,2.28964705]
[1763542618505,0.002,3086.6,3086.5,2.3220462]
[1763542619103,0.002,3086.6,3086.5,2.3230462]
[1763542619303,0.002,3086.8,3086.5,2.3230462]
[1763542619304,0.002,3086.8,3086.6,0.405504]
[1763542619503,0.002,3086.8,3086.7,1.17805607]
[1763542620011,0.002,3086.8,3086.7,1.65005607]
[1763542620392,0.002,3086.8,3086.7,1.61765902]
[1763542620598,0.002,3086.8,3086.7,1.65005607]
[1763542621700,0.0012,3086.8,3086.7,1.65005607]
[1763542622381,0.0012,3086.8,3086.7,1.61765902]
[1763542622906,0.0012,3086.8,3086.7,1.89365902]
[1763542623108,0.0012,3086.8,3086.7,3.12565166]
[1763542623317,0.0012,3086.8,3086.7,2.21865902]
[1763542624405,0.0012,3086.8,3086.7,6.62289166]
[1763542625720,0.002,3087.0,3086.8,1.31249664]
[1763542625923,0.002,3087.0,3086.9,8.51656364]
[1763542626096,0.002,3087.0,3086.9,8.48416869]
[1763542629585,0.002,3087.0,3086.9,8.76016869]
[1763542630015,0.002,3087.0,3086.9,12.25740869]
[1763542630214,0.002,3087.2,3087.0,1.31249664]
[1763542630414,0.002,3087.2,3087.1,1.08289686]
[1763542630717,0.002,3087.2,3087.1,5.92903664]
[1763542630922,0.002,3087.2,3087.1,10.55425814]
[1763542631113,0.002,3087.2,3087.1,10.83025814]
[1763542631421,0.002,3087.2,3087.1,12.0808554]
[1763542632921,0.002,3087.2,3087.1,12.18555753]
[1763542633323,0.002,3087.2,3087.1,11.90955753]
[1763542633631,0.002,3087.2,3087.1,12.18555753]
[1763542635528,0.002,3087.2,3087.1,12.51055753]
[1763542635825,0.8285,3087.2,3087.1,4.74783726]
[1763542636008,0.8285,3087.2,3087.1,4.80973664]
[1763542636831,0.8285,3087.2,3087.1,4.40423264]
[1763542638833,0.4634,3087.2,3087.1,4.40423264]
[1763542639200,0.8285,3087.2,3087.1,4.40423264]
[1763542640110,0.8285,3087.2,3086.8,1.31249664]
[1763542640334,0.4634,3087.2,3087.0,4.72992363]
[1763542640636,0.002,3087.2,3087.0,4.72992363]
[1763542640841,0.002,3087.2,3086.9,0.405504]
[1763542641210,0.546,3087.0,3086.9,0.405504]
[1763542641628,1.0144,3087.0,3086.9,0.405504]
[1763542646405,1.0144,3087.0,3086.8,5.63691627]
[1763542646612,1.0144,3087.0,3086.6,3.49824]
[1763542646613,0.929,3086.9,3086.7,0.90699264]
[1763542646846,0.0846,3087.0,3086.9,0.90699264]
[1763542647221,0.5506,3087.0,3086.9,0.90699264]
[1763542648647,1.0136,3087.0,3086.9,0.90699264]
[1763542650334,0.002,3087.2,3087.0,0.405504]
[1763542650534,0.002,3087.2,3087.1,6.04242027]
[1763542650843,0.002,3087.2,3087.1,6.6466623]
[1763542651051,0.002,3087.2,3087.1,7.7904623]
[1763542651346,0.002,3087.2,3087.1,7.1111623]
[1763542651841,0.002,3087.2,3087.1,7.5932623]
[1763542653451,0.002,3087.2,3087.1,7.8692623]
[1763542655656,0.002,3087.2,3087.1,7.5932623]
[1763542655845,0.002,3087.2,3087.1,7.8692623]
[1763542656042,0.002,3087.2,3087.1,6.20416966]
[1763542656248,0.35,3087.2,3087.1,5.73966966]
[1763542656448,0.35,3087.2,3087.1,6.6466623]
[1763542657065,0.002,3087.2,3087.1,6.6466623]
[1763542657274,0.002,3087.2,3087.1,6.9714623]
[1763542659769,0.002,3087.2,3087.1,7.9250623]
[1763542660858,0.002,3087.2,3087.1,7.4359623]
[1763542662477,0.002,3087.2,3087.1,7.56577405]
[1763542663078,0.3609,3087.2,3087.1,7.10127405]
[1763542663275,0.002,3087.2,3087.1,7.10127405]
[1763542663577,0.8226,3087.2,3087.1,5.26523938]
[1763542663776,0.8226,3087.2,3087.1,0.53531575]
[1763542663981,0.8226,3087.2,3087.1,1.44230839]
[1763542665583,0.8226,3087.2,3087.0,0.001]
[1763542665750,0.4673,3087.1,3087.0,0.001]
[1763542666446,0.002,3087.2,3087.0,0.90799264]
[1763542666647,0.3589,3087.1,3087.0,0.90799264]
[1763542667079,0.8206,3087.1,3087.0,0.90799264]
[1763542668083,0.002,3087.2,3087.0,2.04994427]
[1763542668286,0.002,3087.2,3087.1,0.4959]
[1763542668453,0.002,3087.2,3087.1,0.901404]
[1763542668653,0.002,3087.2,3087.1,5.30563664]
[1763542669871,0.002,3087.2,3087.1,5.79473664]
[1763542670101,0.002,3087.2,3087.1,6.94438783]
[1763542670479,0.002,3087.2,3087.1,6.45528783]
[1763542671510,0.0012,3087.2,3087.1,6.45528783]
[1763542672405,0.0012,3087.2,3087.1,7.40908783]
[1763542672621,0.0012,3087.2,3087.1,7.59478783]
[1763542673109,0.0012,3087.2,3087.1,4.09754783]
[1763542673309,0.0012,3087.2,3087.1,4.12994069]
[1763542673475,0.0012,3087.2,3087.1,3.60844783]
[1763542673710,0.0012,3087.2,3087.1,3.42274783]
[1763542674512,0.0012,3087.2,3087.1,3.91184783]
[1763542677284,0.0012,3087.2,3087.1,4.23664783]
[1763542677481,0.002,3087.5,3087.2,0.405504]
[1763542677819,0.4647,3087.5,3087.4,6.04242027]
[1763542678240,0.8236,3087.5,3087.4,5.63691627]
[1763542678526,0.8236,3087.5,3087.4,0.90699264]
[1763542680594,0.8236,3087.5,3087.0,0.001]
[1763542680929,0.4697,3087.1,3087.0,0.001]
[1763542681324,0.4697,3087.1,3086.5,0.3258]
[1763542681326,0.8217,3087.1,3086.5,0.001]
[1763542681522,0.4697,3086.7,3086.6,0.4567]
[1763542681721,1.53080325,3086.7,3086.2,0.001]
[1763542681899,1.53080325,3086.7,3086.0,0.001]
[1763542681900,0.4697,3086.3,3086.0,0.001]
[1763542682100,0.4696,3086.2,3086.0,0.001]
[1763542682437,0.9274,3086.2,3086.0,0.001]
[1763542691219,0.4696,3086.2,3086.0,0.001]
[1763542691420,0.9258,3086.2,3086.0,0.001]
[1763542693517,0.0573,3086.7,3086.1,0.4526]
[1763542693718,0.4698,3086.2,3086.1,0.001]
[1763542694269,0.4562,3086.5,3086.1,0.4526]
[1763542695120,0.0573,3086.7,3086.1,1.1181]
[1763542695448,0.0573,3086.7,3086.2,0.4562]
[1763542695755,0.5135,3086.7,3086.2,0.4562]
[1763542696548,0.5127,3086.7,3086.2,0.4562]
[1763542696847,0.4562,3086.6,3086.1,0.001]
[1763542697149,0.4562,3086.6,3086.1,0.5137]
[1763542700437,0.4562,3086.6,3086.1,0.001]
[1763542700438,0.4698,3086.2,3086.1,0.001]
[1763542700850,0.926,3086.2,3086.1,0.001]
[1763542704032,1.05592644,3086.2,3086.1,0.001]
[1763542705157,1.6653657,3086.2,3086.1,0.001]
[1763542706226,1.62486282,3086.2,3086.1,0.001]
[1763542706539,1.05592644,3086.2,3086.1,0.001]
[1763542707159,0.926,3086.2,3086.1,0.001]
[1763542708526,0.96650288,3086.2,3086.1,0.001]
[1763542709335,1.96688996,3086.2,3086.1,0.001]
[1763542710256,1.92638708,3086.2,3086.1,0.001]
[1763542710449,2.8006854,3086.2,3086.1,0.001]
[1763542710623,3.67182265,3086.2,3086.1,0.001]
[1763542710830,3.70767804,3086.2,3086.1,0.001]
[1763542711055,4.86871078,3086.2,3086.1,0.001]
[1763542711929,3.40472653,3086.2,3086.1,0.001]
[1763542712160,3.70812159,3086.2,3086.1,0.001]
[1763542712352,5.45477998,3086.2,3086.1,0.001]
[1763542712662,4.11362559,3086.2,3086.1,0.001]
[1763542714068,5.45405274,3086.2,3086.1,0.001]
[1763542715435,5.85955674,3086.2,3086.1,0.001]
[1763542715755,0.90699264,3086.1,3086.0,0.001]
[1763542715930,1.92968651,3086.1,3086.0,0.001]
[1763542716371,1.92910462,3086.1,3086.0,0.001]
[1763542716541,4.5802144,3086.1,3086.0,0.001]
[1763542717268,2.83609726,3086.1,3086.0,0.001]
[1763542717930,3.74824925,3086.1,3086.0,0.001]
[1763542718527,2.37639654,3086.1,3086.0,0.001]
[1763542718788,1.504641,3086.1,3086.0,0.001]
[1763542718940,0.80720543,3086.1,3086.0,0.001]
[1763542719143,0.5045,3086.1,3086.0,0.001]
[1763542720171,0.0059,3086.1,3086.0,0.001]
[1763542720365,0.4589,3086.1,3086.0,0.001]
[1763542721679,0.4581,3086.1,3086.0,0.001]
[1763542726326,0.0051,3086.1,3086.0,0.001]
[1763542729084,0.49860419,3086.1,3086.0,0.001]
[1763542729390,0.5450965,3086.1,3086.0,0.001]
[1763542729752,0.7608427,3086.1,3086.0,0.001]
[1763542730169,1.45827827,3086.1,3086.0,0.001]
[1763542730374,1.45901483,3086.1,3086.0,0.001]
[1763542730596,1.00601483,3086.1,3086.0,0.001]
[1763542731163,0.002,3086.2,3086.0,0.001]
[1763542731164,0.69943557,3086.2,3086.0,0.946]
[1763542731399,0.002,3086.2,3086.1,0.4527]
[1763542731601,0.002,3086.2,3086.0,0.001]
[1763542732788,0.002,3086.2,3086.1,0.4527]
[1763542733495,0.4589,3086.2,3086.0,0.001]
[1763542733658,0.0212,3086.1,3086.0,0.001]
[1763542733859,0.002,3086.2,3086.1,0.4527]
[1763542735363,0.4589,3086.2,3086.0,0.001]
[1763542738776,0.0211,3086.1,3086.0,0.001]
[1763542738980,0.51460419,3086.1,3086.0,0.001]
[1763542739287,0.81806954,3086.1,3086.0,0.001]
[1763542739485,2.22116473,3086.1,3086.0,0.001]
[1763542740669,2.72985273,3086.1,3086.0,0.001]
[1763542740990,2.22116473,3086.1,3086.0,0.001]
[1763542742094,2.18066054,3086.1,3086.0,0.001]
[1763542743499,1.72966054,3086.1,3086.0,0.001]
[1763542743800,2.18266054,3086.1,3086.0,0.001]
[1763542743968,2.69134069,3086.1,3086.0,0.001]
[1763542746542,2.69054069,3086.1,3086.0,0.001]
[1763542747656,2.73104488,3086.1,3086.0,0.001]
[1763542747813,3.60280042,3086.1,3086.0,0.001]
[1763542749099,1.00290092,3086.1,3086.0,0.4967]
[1763542749305,0.30546535,3086.1,3086.0,0.4967]
[1763542749530,0.002,3086.1,3086.0,0.4967]
[1763542749831,0.30546535,3086.1,3086.0,0.4967]
[1763542750037,0.30598401,3086.1,3086.0,0.4967]
[1763542750245,0.30598401,3086.1,3086.0,0.9793]
[1763542750415,0.002,3086.1,3086.0,0.9793]
[1763542751140,0.002,3086.1,3086.0,1.54043984]
[1763542752447,0.51058098,3086.1,3086.0,1.54043984]
[1763542753656,0.51058098,3086.1,3086.0,0.9793]
[1763542754854,0.51058098,3086.1,3086.0,0.4967]
[1763542755028,1.00208517,3086.1,3086.0,0.001]
[1763542760558,0.96158098,3086.1,3086.0,0.001]
[1763542762164,0.51058098,3086.1,3086.0,0.001]
[1763542762531,0.51058098,3086.1,3086.0,0.4967]
[1763542762937,0.002,3086.1,3086.0,0.4967]
[1763542766367,0.51063365,3086.1,3086.0,0.4967]
[1763542767135,0.96053365,3086.1,3086.0,0.001]
[1763542767336,1.26443411,3086.1,3086.0,0.001]
[1763542767569,1.8822841,3086.1,3086.0,0.001]
[1763542767759,2.58240637,3086.1,3086.0,0.001]
[1763542768168,3.44889482,3086.1,3086.0,0.001]
[1763542768370,4.32065036,3086.1,3086.0,0.001]
[1763542769470,4.32430857,3086.1,3086.0,0.001]
[1763542769670,3.48939901,3086.1,3086.0,0.001]
[1763542769875,8.18584851,3086.1,3086.0,0.001]
[1763542771588,8.18491562,3086.1,3086.0,0.001]
[1763542771801,9.92903276,3086.1,3086.0,0.001]
[1763542771987,8.18491562,3086.1,3086.0,0.001]
[1763542772856,4.32256994,3086.1,3086.0,0.001]
[1763542773056,4.08772414,3086.1,3086.0,0.001]
[1763542773272,1.51372349,3086.1,3086.0,0.4866]
[1763542773464,0.81373411,3086.1,3086.0,0.4866]
[1763542773865,0.50983365,3086.1,3086.0,0.4866]
[1763542774356,1.51372349,3086.1,3086.0,0.4866]
[1763542774674,0.81373411,3086.1,3086.0,0.4866]
[1763542774871,0.50983365,3086.1,3086.0,0.9438]
[1763542775371,0.81373411,3086.1,3086.0,0.9438]
[1763542775571,0.50983365,3086.1,3086.0,0.9438]
[1763542776985,0.0012,3086.1,3086.0,0.9438]
[1763542777974,0.2724991,3086.4,3086.1,0.1896]
[1763542778176,0.2724991,3086.4,3086.1,1.1128]
[1763542779374,0.002,3086.2,3086.1,1.1128]
[1763542779886,0.002,3086.2,3086.1,0.64]
[1763542780096,0.51061675,3086.2,3086.1,0.64]
[1763542780258,0.51061675,3086.2,3086.1,1.1128]
[1763542789604,0.51061675,3086.2,3086.1,0.4504]
[1763542790206,0.51061675,3086.2,3086.1,0.9232]
[1763542790773,0.002,3086.2,3086.1,0.4504]
[1763542794000,0.51060818,3086.2,3086.1,0.4504]
[1763542794691,0.51060818,3086.2,3086.1,0.9232]
[1763542795495,0.51060818,3086.2,3086.1,0.4504]
[1763542796274,0.50980818,3086.2,3086.1,0.4504]
[1763542796677,0.96260818,3086.2,3086.0,0.001]
[1763542796873,0.04050419,3086.1,3086.0,0.001]
[1763542797312,0.04050419,3086.1,3086.0,0.4514]
[1763542797513,0.50980818,3086.2,3086.0,0.4514]
[1763542800191,0.4517,3086.1,3086.0,0.001]
[1763542800386,0.7924,3086.1,3086.0,0.001]
[1763542801029,0.83290419,3086.1,3086.0,0.001]
[1763542801232,1.09605174,3086.1,3086.0,0.001]
[1763542801632,1.79570132,3086.1,3086.0,0.001]
[1763542802595,2.02625227,3086.1,3086.0,0.001]
[1763542802791,2.06675646,3086.1,3086.0,0.001]
[1763542803708,2.02625227,3086.1,3086.0,0.001]
[1763542804828,2.06675646,3086.1,3086.0,0.001]
[1763542805023,3.84835711,3086.1,3086.0,0.001]
[1763542805647,3.80785292,3086.1,3086.0,0.001]
[1763542805852,1.49660551,3086.1,3086.0,0.001]
[1763542806219,0.30365174,3086.1,3086.0,0.4514]
[1763542806518,0.0012,3086.2,3086.0,0.9242]
[1763542806733,0.0012,3086.2,3086.1,0.4504]
[1763542807644,0.30515684,3086.2,3086.1,0.4504]
[1763542807853,0.81378036,3086.2,3086.1,0.4504]
[1763542809263,1.60648036,3086.2,3086.0,0.001]
[1763542809548,1.79620642,3086.1,3086.0,0.001]
[1763542809924,1.00360642,3086.1,3086.0,0.4816]
[1763542810116,0.50982352,3086.2,3086.0,0.9387]
[1763542810351,0.50982352,3086.2,3086.1,0.6654]
[1763542810648,0.50982352,3086.2,3086.1,1.1225]
[1763542814336,0.50982352,3086.2,3086.1,1.70876197]
[1763542814537,0.0012,3086.2,3086.1,1.70876197]
[1763542814936,0.0012,3086.2,3086.1,6.33850135]
[1763542816553,0.0012,3086.2,3086.1,1.70876197]
[1763542816729,0.0012,3086.2,3086.1,5.75223938]
[1763542817324,0.0012,3086.2,3086.1,0.6654]
[1763542817529,0.0012,3086.2,3086.1,1.1225]
[1763542821367,0.0004,3086.2,3086.1,1.1225]
[1763542822189,0.0004,3086.2,3086.1,2.02949264]
[1763542822351,0.0004,3086.2,3086.1,1.7885232]
[1763542823695,0.0004,3086.2,3086.1,1.1466232]
[1763542824018,0.0004,3086.2,3086.1,0.4806]
[1763542825400,0.0004,3086.2,3086.1,1.146]
[1763542828088,0.50894371,3086.2,3086.1,1.146]
[1763542828401,0.0004,3086.2,3086.1,1.146]
[1763542831520,0.84403164,3086.2,3086.0,4.63073938]
[1763542831868,0.84403164,3086.2,3086.1,0.4869]
[1763542831869,0.50893164,3086.2,3086.1,0.4869]
[1763542834601,0.0004,3086.2,3086.1,0.4869]
[1763542835684,0.3355,3086.2,3086.0,0.001]
[1763542836002,0.3363,3086.1,3086.0,0.001]
[1763542836204,0.0004,3086.2,3086.0,0.001]
[1763542839707,0.0004,3086.2,3086.1,0.4979]
[1763542839890,0.0004,3086.2,3086.1,5.79513938]
[1763542840208,0.0004,3086.2,3086.1,6.37475332]
[1763542841208,0.0004,3086.2,3086.1,1.74501394]
[1763542841509,0.0004,3086.2,3086.1,1.1654]
[1763542841907,0.50897425,3086.2,3086.1,1.1654]
[1763542842495,0.85827425,3086.2,3086.0,0.001]
[1763542842695,0.04050419,3086.1,3086.0,0.001]
[1763542842901,0.3493,3086.1,3086.0,0.001]
[1763542843080,0.7999,3086.1,3086.0,0.001]
[1763542846314,0.7991,3086.1,3086.0,0.001]
[1763542847884,0.3485,3086.1,3086.0,0.001]
[1763542848080,0.7991,3086.1,3086.0,0.001]
[1763542848317,1.14363255,3086.1,3086.0,0.001]
[1763542848990,1.28759282,3086.1,3086.0,0.001]
[1763542849689,1.32809701,3086.1,3086.0,0.001]
[1763542850927,2.0284153,3086.1,3086.0,0.001]
[1763542854698,1.35284665,3086.1,3086.0,0.001]
[1763542855012,1.10312836,3086.1,3086.0,0.001]
[1763542855331,1.80344665,3086.1,3086.0,0.001]
[1763542855719,1.10312836,3086.1,3086.0,0.001]
[1763542856233,0.30402836,3086.1,3086.0,0.001]
[1763542856430,0.30442836,3086.2,3086.0,0.4989]
[1763542856636,0.0004,3086.2,3086.1,0.4979]
[1763542857227,0.0004,3086.2,3086.1,0.976]
[1763542857429,0.3499,3086.2,3086.0,0.001]
[1763542857629,0.0045,3086.1,3086.0,0.001]
[1763542858000,0.4561,3086.1,3086.0,0.001]
[1763542858438,0.49660419,3086.1,3086.0,0.001]
[1763542858622,0.4561,3086.1,3086.0,0.001]
[1763542860415,0.0045,3086.1,3086.0,0.001]
[1763542860723,0.30403489,3086.2,3086.0,0.4989]
[1763542860929,0.0004,3086.2,3086.0,0.4989]
[1763542861435,0.002,3086.1,3086.0,0.4989]
[1763542861606,0.002,3086.1,3086.0,5.10883938]
[1763542861803,0.002,3086.1,3086.0,6.11762332]
[1763542862008,0.002,3086.1,3086.0,1.48788394]
[1763542862203,0.002,3086.1,3086.0,0.977]
[1763542863916,0.002,3086.1,3086.0,5.60673938]
[1763542870047,0.002,3086.1,3086.0,6.01224338]
[1763542870250,0.002,3086.1,3086.0,6.14212594]
[1763542871451,0.0012,3086.1,3086.0,6.14212594]
[1763542871819,0.0012,3086.1,3086.0,6.75633853]
[1763542872042,0.0012,3086.1,3086.0,6.35083453]
[1763542872248,0.0012,3086.1,3086.0,1.11311259]
[1763542872549,0.0012,3086.1,3086.0,1.58301259]
[1763542874752,0.0012,3086.1,3086.0,1.11311259]
[1763542874976,0.3336,3086.1,3086.0,0.001]
[1763542879024,0.8001,3086.1,3086.0,0.001]
[1763542879354,0.8014,3086.1,3086.0,0.001]
[1763542881230,0.84190419,3086.1,3086.0,0.001]
[1763542883671,1.14553591,3086.1,3086.0,0.001]
[1763542884859,1.14558397,3086.1,3086.0,0.001]
[1763542885470,1.65421402,3086.1,3086.0,0.001]
[1763542885672,1.31104537,3086.1,3086.0,0.001]
[1763542885972,2.01037474,3086.1,3086.0,0.001]
[1763542886635,2.91736738,3086.1,3086.0,0.001]
[1763542887574,2.91736898,3086.1,3086.0,0.001]
[1763542888073,2.56876898,3086.1,3085.4,0.001]
[1763542888274,2.56876898,3086.1,3083.0,0.16949554]
[1763542888275,0.4781,3082.3,3081.6,7.57973933]
[1763542888458,0.4752,3081.7,3081.1,0.1897]
[1763542888654,2.04201733,3081.2,3081.1,0.1897]
[1763542888977,0.70122937,3081.2,3080.1,0.1897]
[1763542889177,0.6607,3081.1,3080.0,0.1897]
[1763542889473,1.79312536,3081.0,3079.9,0.05]
[1763542889769,0.69583272,3080.9,3079.9,0.05]
[1763542890076,1.5712779,3080.8,3079.9,0.05]
[1763542890280,0.69583272,3080.7,3079.9,0.05]
[1763542890477,0.4518,3080.6,3079.9,0.05]
[1763542891342,0.2087,3080.0,3079.9,0.05]
[1763542891655,0.90453272,3080.0,3079.9,0.05]
[1763542891856,2.52636445,3080.0,3079.9,0.05]
[1763542892230,2.02487581,3080.0,3079.9,0.05]
[1763542892565,0.0626,3078.0,3076.6,0.09083496]
[1763542892733,0.0626,3078.0,3073.3,1.67017886]
[1763542892734,0.621,3076.7,3073.9,0.05]
[1763542892933,0.405504,3076.5,3074.8,0.1897]
[1763542893129,0.86064582,3076.2,3074.8,0.1897]
[1763542893333,0.1897,3076.6,3074.9,0.6639]
[1763542893562,0.6415,3076.6,3074.9,0.6639]
[1763542893770,0.68464126,3076.6,3075.0,0.4742]
[1763542893931,0.6639,3077.0,3076.5,0.6888]
[1763542894270,1.31244582,3078.8,3076.6,6.88064746]
[1763542894582,0.6824956,3078.7,3077.2,0.1897]
[1763542894736,0.6824956,3078.6,3077.3,0.405504]
[1763542894938,0.86064582,3078.8,3077.3,0.879704]
[1763542894939,1.54314142,3078.5,3077.3,0.879704]
[1763542895191,1.54314142,3078.4,3077.3,0.879704]
[1763542895404,0.6824956,3078.3,3077.5,0.405504]
[1763542895712,0.86064582,3078.8,3078.3,0.1897]
[1763542895910,0.68103952,3078.7,3078.3,0.1897]
[1763542896124,0.68023952,3078.6,3078.3,0.6639]
[1763542896337,0.68023952,3078.6,3077.2,0.1897]
[1763542896338,1.14752776,3078.4,3077.2,0.6639]
[1763542896475,0.85031668,3078.1,3077.2,0.6639]
[1763542896671,0.85031668,3078.1,3077.2,0.1897]
[1763542896876,0.85031668,3077.9,3077.2,0.1897]
[1763542897274,0.0626,3077.9,3077.2,0.1897]
[1763542897473,0.85031668,3078.0,3077.2,0.6743]
[1763542897677,0.85031668,3078.1,3077.2,0.6743]
[1763542898129,0.85031668,3078.2,3077.2,0.6743]
[1763542898293,0.85031668,3078.4,3077.4,0.405504]
[1763542898479,0.85031668,3078.8,3078.1,0.1975]
[1763542898882,1.46041668,3078.9,3078.1,0.1975]
[1763542899163,0.50993024,3078.8,3077.6,0.4846]
[1763542899319,0.40369444,3078.9,3077.6,0.4846]
[1763542899519,1.25401112,3078.9,3077.7,0.4846]
[1763542899749,1.31751668,3078.8,3077.7,0.4846]
[1763542899948,0.85031668,3078.7,3077.7,0.4846]
[1763542900125,0.85031668,3078.7,3077.7,0.41945602]
[1763542900333,0.85031668,3078.7,3077.2,0.1897]
[1763542900334,0.0651,3077.8,3077.2,0.1897]
[1763542900536,0.85031668,3078.2,3077.2,0.1897]
[1763542900855,0.85031668,3078.2,3075.1,3.30190354]
[1763542900856,0.85031668,3078.2,3077.1,0.1975]
[1763542901172,1.31751668,3078.3,3077.1,0.1975]
[1763542901526,0.85031668,3078.3,3077.1,0.1975]
[1763542901728,0.85031668,3078.4,3077.1,0.1975]
[1763542901966,1.46041668,3078.9,3077.1,0.1975]
[1763542902256,0.1429,3078.9,3077.3,0.405504]
[1763542902753,0.1932,3079.2,3077.5,0.405504]
[1763542903126,0.4672,3079.1,3077.7,0.405504]
[1763542903427,0.4672,3079.1,3077.6,0.4846]
[1763542903626,0.1932,3079.2,3077.7,0.405504]
[1763542904134,0.1932,3079.2,3077.9,0.405504]
[1763542904451,0.6604,3079.2,3077.9,0.405504]
[1763542904655,0.85031668,3079.5,3078.0,0.4846]
[1763542904866,0.1879,3079.6,3078.1,0.405504]
[1763542905170,0.040591,3079.5,3078.2,0.890104]
[1763542905448,1.52000426,3079.9,3078.4,0.405504]
[1763542905825,1.52000426,3079.9,3078.5,0.4846]
[1763542906034,0.85031668,3079.8,3078.5,0.4846]
[1763542906228,0.50975076,3079.6,3078.5,0.4846]
[1763542907254,0.040591,3079.5,3078.5,0.4846]
[1763542907572,0.89090768,3079.5,3078.5,0.4846]
[1763542907720,0.27748511,3079.4,3078.5,0.4846]